Cogmind - Beta 13 *** ADVENTURER MODE // 2024.04.10 @ 16:24:39 Player: ActualDio Result: Destroyed by D-53 Grenadier with Mini Grenade Launcher Performance ------------- Evolutions (0) 0 Regions Visited (2) 400 Robots Destroyed (15) 75 Value Destroyed (304) 304 Prototype IDs (0) 0 Alien Tech Used (0) 0 Bonus (0) 0 TOTAL SCORE: 779 Bonus ------- None Cogmind --------- Core Integrity 0/250 Matter 171/300 Energy 100/100 System Corruption 3% Temperature Cool (0) Movement Core (350) Ox6 Location -10/Mines Parts ------- > --- POWER (1) -------- (None) > --- PROPULSION (2) --- (None) > --- UTILITY (2) ------ Large Storage Unit Signal Interpreter > --- WEAPON (2) ------- (None) > --- INVENTORY (15) --- Aluminum Leg Grenade Launcher Peak State ------------ > --- POWER ------------ Light Ion Engine > --- PROPULSION ------- Aluminum Leg Aluminum Leg > --- UTILITY ---------- Small Storage Unit Medium Storage Unit > --- WEAPON ----------- Assault Rifle Assault Rifle > --- INVENTORY -------- Light Ion Engine EM Pulse Gun [Rating: 7] Favorites ----------- Power Light Ion Engine Engine Light Ion Engine Propulsion Aluminum Leg Leg Aluminum Leg Wheel Compact Wheel Utility Signal Interpreter Storage Large Storage Unit Processor Signal Interpreter Weapon Assault Rifle Ballistic Gun Assault Rifle Ballistic Cannon Light Cannon Launcher Grenade Launcher Build | -11 -10 -10 ------- Run | Yrd Mat Min Slots Evolved . | . . . Power . | . . . Propulsion . | . . . Utility . | . . . Weapon . | . . . Parts Attached 18 | 6 8 4 Power 2 | 1 1 . Engine 2 | 1 1 . Core . | . . . Reactor . | . . . Propulsion 5 | 2 2 1 Treads . | . . . Leg 4 | 2 1 1 Wheel 1 | . 1 . Hover . | . . . Flight . | . . . Utility 4 | 1 3 . Device . | . . . Storage 3 | 1 2 . Processor 1 | . 1 . Hackware . | . . . Protection . | . . . Artifact . | . . . Weapon 7 | 2 2 3 Energy Gun . | . . . Energy Cannon . | . . . Ballistic Gun 5 | 2 2 1 Ballistic Cannon 1 | . . 1 Launcher 1 | . . 1 Special Weapon . | . . . Impact Weapon . | . . . Slashing Weapon . | . . . Piercing Weapon . | . . . Special Melee Weapon . | . . . Unidentified Prototypes . | . . . Parts Lost 7 | . 1 6 Power 2 | . 1 1 Propulsion 2 | . . 2 Utility . | . . . Weapon 3 | . . 3 Highest Loss Streak 4 | . 1 4 To Critical Strikes . | . . . Average Slot Usage (%) 93 | . 94 88 Engine 10 | . 12 4 Leg 22 | . 26 13 Wheel 4 | . . 14 Storage 14 | . 14 14 Processor 12 | . 11 14 Ballistic Gun 23 | . 28 10 Ballistic Cannon 2 | . . 9 Launcher 2 | . . 7 Naked Turns . | . . . Heaviest Build 27 | 12 27 27 Greatest Support 20 | 20 20 16 Greatest Overweight (x) 1 | 1 1 1 Average Overweight (x) . | . . 1 Largest Inventory Capacity 15 | 8 15 15 Average Capacity 12 | 6 12 15 Most Carried 5 | 5 4 4 Average Carried 2 | 3 2 2 Final Capacity 15 | 8 15 15 Final Carried 3 | 2 3 2 Class Distribution -------------------- 100% | Mutant Dominant Class ---------------- Mutant | -10/Materials Mutant | -10/Mines Resources | -11 -10 -10 ----------- Run | Yrd Mat Min Matter Collected 593 | 189 256 148 Remotely . | . . . Salvage Created 421 | . 256 165 Parts 33 | . 19 14 Haulers Intercepted 1 | . 1 . Recyclers Shooed 1 | . 1 . Parts Field Recycled . | . . . Retrieved Matter . | . . . Parts Self-Destructed . | . . . Prevented . | . . . Kills | -11 -10 -10 ------- Run | Yrd Mat Min Combat Hostiles Destroyed 17 | . 6 11 Guns 9 | . 6 3 Cannons 3 | . . 3 AOE 5 | . . 5 Classes Destroyed 6 | . 4 2 Worker 1 | . . 1 Hauler 1 | . 1 . Watcher 2 | . 2 . Swarmer 6 | . 3 3 Grunt 5 | . 3 2 Assembled 6 | . . 6 Best Kill Streak 6 | . 4 6 Combat Bots Only 6 | . 2 6 Max Kills in Single Turn 3 | . 1 3 Gunslinging . | . . . Exploded 3 | . . 3 Melee . | . . . Uniques/NPCs Destroyed . | . . . Combat | -11 -10 -10 -------- Run | Yrd Mat Min Hostile Shots Fired 152 | . 54 98 Missed 47 | . 18 29 Damage Taken 1169 | . 309 860 Core 251 | . 42 209 Absorbed by Shields . | . . . Ignored by Resistances 352 | . 97 255 Core Remaining (%) 100 | 100 . . Volleys Fired 51 | . 25 26 Largest 2 | . 2 2 Hottest 65 | . 40 65 Shots Fired 100 | . 50 50 Gun 82 | . 50 32 Cannon 13 | . . 13 Launcher 5 | . . 5 Special . | . . . Kinetic 95 | . 50 45 Thermal . | . . . Explosive 5 | . . 5 Electromagnetic . | . . . Robot Hit Streak 16 | . 16 11 Robot Miss Streak 3 | . 2 3 Penetration Max . | . . . Secondary Targets 3 | . 2 1 Max Gunslinging Chain 1 | . 1 1 Shots Hit Robots 71 | . 39 32 Core Hits 38 | . 17 21 Critical Kills . | . . . Critical Parts Destroyed . | . . . Critical Strikes . | . . . Melee Attacks . | . . . Impact . | . . . Slashing . | . . . Piercing . | . . . Sneak Attacks . | . . . Combat Hostiles . | . . . Follow-up Attacks . | . . . Damage Inflicted 1289 | . 514 775 Guns 785 | . 514 271 Cannons 126 | . . 126 Explosions 378 | . . 378 Melee . | . . . Ramming . | . . . Kinetic 911 | . 514 397 Thermal . | . . . Explosive 378 | . . 378 Electromagnetic . | . . . Impact . | . . . Slashing . | . . . Piercing . | . . . Highest Corruption 3 | . . 3 Average Corruption 3 | . . 3 Corruption Purged . | . . . Corruption Blocked . | . . . Effects 8 | . . 8 Message Errors 1 | . . 1 Matter Fused 4 | . . 4 Heat Flow Errors 1 | . . 1 Energy Discharges 1 | . . 1 Weapon Failures 1 | . . 1 Overload Shots . | . . . Overflow Damage 8 | . . 8 Projectiles . | . . . Explosions 8 | . . 8 Melee . | . . . Knockbacks 3 | . . 3 Impact . | . . . Kinetic 3 | . . 3 Secondary . | . . . Self-Inflicted Damage 79 | . . 79 Shots 3 | . . 3 Rammed . | . . . Targets Rammed . | . . . Kicked . | . . . Crushed . | . . . Highest Temperature 295 | . 3 295 Average Temperature 72 | . 2 85 Received Heat Transfer 419 | . 102 317 Siege Activations . | . . . Robots Corrupted . | . . . Combat Hostiles . | . . . Parts Fried . | . . . Impact Corruptions . | . . . Robots Melted . | . . . Combat Hostiles . | . . . Parts Melted . | . . . Heat Transferred . | . . . Parts Sabotaged . | . . . Parts Stolen . | . . . Parts Stripped . | . . . Power Chain Reactions . | . . . Alert | -11 -10 -10 ------- Run | Yrd Mat Min Peak Influence 220 | . 220 203 Initial 6 | . . 6 Average 72 | . 62 109 Maximum Alert Level 1 | . 1 1 Low Security (%) 85 | 100 83 90 Level 1 14 | . 16 9 Level 2 . | . . . Level 3 . | . . . Level 4 . | . . . Level 5 . | . . . High Security . | . . . Max Security . | . . . Squads Dispatched . | . . . Investigation . | . . . Extermination . | . . . Reinforcement . | . . . Assault . | . . . Garrison . | . . . Intercept . | . . . Searches Triggered . | . . . Construction Impeded . | . . . Haulers Reinforced . | . . . Active Scanning Responses . | . . . Cargo Convoy Interrupts . | . . . Stealth | -11 -10 -10 --------- Run | Yrd Mat Min Distress Signals 2 | . 2 . Communications Jammed . | . . . Distress Signals . | . . . Times Spotted 39 | . 11 28 Peak Tracking Total 10 | . 6 10 Tactical Retreats 2 | . . 2 Traps | -11 -10 -10 ------- Run | Yrd Mat Min Traps Triggered 1 | . 1 . Indirectly . | . . . Trap Hack Attempts . | . . . Triggered . | . . . Disarmed . | . . . Reprogrammed . | . . . Reused . | . . . Traps Extracted . | . . . Installed . | . . . Triggered . | . . . Machines | -11 -10 -10 ---------- Run | Yrd Mat Min Machines Disabled . | . . . Max in Single Turn . | . . . Machines Repaired . | . . . Machines Dismantled . | . . . Machines Sabotaged . | . . . Overloaded Fab Kills . | . . . Hacking | -11 -10 -10 --------- Run | Yrd Mat Min Machines Accessed 8 | . 8 . Terminals 8 | . 8 . Fabricators . | . . . Repair Stations . | . . . Recycling Units . | . . . Scanalyzers . | . . . Garrison Access . | . . . Total Hacks 15 | . 15 . Successful 10 | . 10 . Failed 5 | . 5 . Catastrophic . | . . . Database Lockouts . | . . . Manual 14 | . 14 . Terminals 15 | . 15 . Fabricators . | . . . Repair Stations . | . . . Recycling Units . | . . . Scanalyzers . | . . . Garrison Access . | . . . Terminal Hacks 1 | . 1 . Terminal Index 1 | . 1 . Fabricator Hacks . | . . . Repair Station Hacks . | . . . Recycling Unit Hacks . | . . . Scanalyzer . | . . . Garrison Access Hacks . | . . . Unauthorized Hacks 9 | . 9 . Terminals 9 | . 9 . Track 1 | . 1 . Botnet 8 | . 8 . Fabricators . | . . . Repair Stations . | . . . Recycling Units . | . . . Scanalyzers . | . . . Garrison Access . | . . . Data Cores Recovered . | . . . Used . | . . . Hacking Detections 4 | . 4 . Full Trace Events . | . . . Feedback Events . | . . . Feedback Blocked . | . . . Robot Schematics Acquired . | . . . Robots Built . | . . . Authchips . | . . . Time . | . . . Total Robot Build Rating . | . . . Part Schematics Acquired . | . . . Parts Built . | . . . Authchips . | . . . Time . | . . . Total Part Build Rating . | . . . Parts Repaired . | . . . Time . | . . . Parts Recycled . | . . . Recycled Matter . | . . . Retrieved Matter . | . . . Retrieved Components . | . . . Parts Scanalyzed . | . . . Part Schematics Acquired . | . . . Parts Damaged . | . . . Bothacking | -11 -10 -10 ------------ Run | Yrd Mat Min Used RIF Installer . | . . . Robots Hacked . | . . . Non-combat . | . . . Combat . | . . . Robot Hacks Applied . | . . . Relay Couplers Released . | . . . Fabnet Peak Effective % . | . . . Robots Rewired . | . . . Allies Hacked . | . . . Hacks Repelled . | . . . Allies | -11 -10 -10 -------- Run | Yrd Mat Min Total Allies . | . . . Largest Group . | . . . Highest-Rated Group . | . . . Highest-Rated Ally . | . . . Total Orders . | . . . Ally Attacks . | . . . Total Damage . | . . . Kills . | . . . Allies Corrupted . | . . . Allies Melted . | . . . Intel | -11 -10 -10 ------- Run | Yrd Mat Min Robot Analysis Total . | . . . Derelict Logs Recovered 1 | . . 1 Drone Launches . | . . . Drone Recoveries . | . . . Exploration | -11 -10 -10 ------------- Run | Yrd Mat Min Turns Passed 1138 | 40 790 308 Spaces Moved 696 | 34 469 193 Core 21 | 21 . . Treads . | . . . Legs 449 | 13 436 . Wheels 226 | . 33 193 Hover . | . . . Flight . | . . . Fastest Speed 50 | 50 115 115 Average Speed 135 | 84 147 115 Slowest Speed 190 | 120 190 115 Overloaded Moves . | . . . Propulsion Burnouts . | . . . Robots Hopped . | . . . Cave-ins Triggered . | . . . Exploration Rate (%) 41 | 3 74 46 Regions Visited 2 Branch Regions 1 Pre-discovered Areas . | . . . Known Exits Taken 1 | . 1 . Unknown Exits Taken 1 | 1 . . Scrap Searched . | . . . Spaces Dug . | . . . Terrain Destroyed 36 | . . 36 Melee . | . . . Projectile . | . . . AOE 36 | . . 36 Terrain Rammed . | . . . Walls Destroyed . | . . . Machines Disabled . | . . . Actions | -11 -10 -10 --------- Run | Yrd Mat Min Total 790 | 44 518 228 Wait 4 | . . 4 Move 694 | 33 468 193 Hop . | . . . Pick Up 15 | 5 9 1 Fast Attach 3 | 3 . . Attach 8 | 3 3 2 Detach 1 | . 1 . Swap 7 | . 5 2 Drop 7 | . 7 . Fire 51 | . 25 26 Melee . | . . . Ram . | . . . Kick . | . . . Crush . | . . . Escape Stasis . | . . . Rewire . | . . . Trap . | . . . Miscellaneous . | . . . Route ------- -11/Scrapyard -10/Materials (discovered 3 exits: *Mat x2 / *Min) -10/Mines History --------- Turn | Location | Event 10 | -11/Scrapyard | Discovered new exit (range 16) 41 | -11/Scrapyard | Entered Materials 302 | -10/Materials | Discovered new exit (range 15) 312 | -10/Materials | Build established: Mutant 442 | -10/Materials | Discovered new exit (range 16) 468 | -10/Materials | Identified exit to Materials 819 | -10/Materials | Discovered new exit (range 11) 830 | -10/Materials | Identified exit to Mines 831 | -10/Materials | Entered Mines 864 | -10/Mines | Assembled infested the area 869 | -10/Mines | Assisted by a Guerilla fighting off Assembled 933 | -10/Mines | Core integrity fell below 50% 1095 | -10/Mines | Core integrity fell below 20% 1133 | -10/Mines | Learned Materials emergency access door positions 1139 | -10/Mines | Destroyed by D-53 Grenadier with Mini Grenade Launcher Last Messages --------------- S-10 Pest destroyed. R-06 Scavenger collects Wheel. VETPELJNFBV2ICKZI3C1CJX|FXDZ1TVE6 B:ZOID System corrupted: Assault Rifle jammed. S-10 Pest destroyed. R-06 Scavenger collects Med. Matter Pod. K-01 Serf collects debris. S-10 Pest destroyed. R-06 Scavenger collects Lgt. Ion Engine. K-01 Serf collects debris. Acquired 7 matter. Acquired 9 matter. Acquired 16 matter. Acquired derelict log, extracted data. Data stored: Materials emergency access points. Com. Wheel destroyed. D-53 Grenadier knocked back. Lgt. Cannon destroyed. Aluminum Leg destroyed. Assault Rifle destroyed. Map ----- +----------------------------------------------------+ | | | | | | | ?????????????????????????????????????????????????? | | ?????????????????????????????????????????????????? | | ?????????????????????????????????????????????????? | | ?????????????????????????????????????????????????? | | ?????????????????????????????????????????????????? | | ?????????????????????????????????????????????????? | | ?????????????????????????????????????????????????? | | ?????????????????????????????????????????????????? | | ?????????????????????????????????????????????????? | | ?????????????????????????????????????????????????? | | ????????????????###??????????????????????????????? | | ??????????????? #??###????????????????????????? | | ???????????????? ### #???????????????????????? | | ????????????????? ###????????????????????? | | ?????????????????? ##???????????????????? | | ??????????????????# ????????????????????? | | ??????????????????# ????????????????????? | | ??????????????????# t#????????????????????? | | ??????????????????# ###??????????????????? | | ???????????????????? ####???????????????? | | ????????????# ###### ##??????????????? | | ????????????# #??????????????? | | ?????????????# @ d #??????????????? | | ??????####????# #### d #??????????????? | | ?????## ##??????##### #??????????? | | ????## ###????# # #??????????? | | ??### =###### #### ## ##? #??????????? | | ?## [ = #??###??##???? ?????????? | | ## =########?????????????? ?????????? | | #?????????????????????? ?????????? | | % #???????????????????????? ??????????? | | ## ###????????????????????????? ??????????? | | #?# ##??????????????????????????????????????? | | ###??# #???????????????????????????????????????? | | ??????# ####????????????????????????????????????? | | ??????# #????????????????????????????????????? | | ??????##### #????????????????????????????????????? | | ??????????# ########?????????????????????????????? | | ??????????# #?????????????????????????????? | | ??????????####### #?????????????????????????????? | | ?????######?????# #?????????????????????????????? | | ????## ##????# #?????????????????????????????? | | ????# #????# #?????????????????????????????? | | ????# " #???## #?????????????????????????????? | | ##??# ##??## ##????????????????????????????? | | ##?## ##???# ##???????????????????????????? | | ##### ##????# = #???????????????????????????? | +----------------------------------------------------+ Best States ------------- Heat Dissipation 25 Energy Generation 10 Energy Capacity 125 Matter Stores 300 Matter Capacity 300 Sight Range 16 Terrain Scan Density 10 Resistance: KI 20 Resistance: TH 20 Resistance: EX 20 Resistance: EM 20 Resistance: I 20 Resistance: S 20 Resistance: P 20 Evasion (%) 55 Offensive Hacking 10 Item Schematics ----------------- None Robot Schematics ------------------ None Fabricated ------------ Nothing Alien Tech Used ----------------- None Achievements -------------- None Challenges ------------ None Game ------ Seed AutogunWeaponRedistributor Manual? 0 Play Time 00:10:50 Cumulative 18.8 hours Start 2024.04.10 @ 16:16:35 End 2024.04.10 @ 16:24:39 Sessions 1 Manual Loads 0 Difficulty Adventurer Special Mode None Game No. 28 Rogue 0 Adventurer 28 Explorer 0 Win Type - Total 0 Types 0/0/0/0/0/0/0/0/0 Lore% 37 Gallery% 43 Achievement% 33 Wizard Run 0 Options --------- Layout 1 ASCII 0 Keyboard 0 Movement Mouse Keybinds 0 Fullscreen 1 Font 24/Smallcaps Map View 50x35 Zoom Use 0% Tactical HUD 0 Map Filters NONE Filters NONE Steam 0 RUN: 418cd4c6-0b60-4714-ab23-a9fdcb5d4518